[Event "*** SCC Grand Prix: Titled Tuesday Blitz"]
[Site "Chess.com"]
[Date "2020.08.11"]
[Round "6"]
[White "GoltsevDmitry2000"]
[Black "okriak"]
[Result "0-1"]
[WhiteElo "2616"]
[BlackElo "2767"]
[TimeControl "180+1"]
[EndTime "11:08:29 PDT"]
[Termination "okriak won on time"]

1. e4 {[%clk 0:03:00.6]} 1... e5 {[%clk 0:02:58.5]} 2. Nf3 {[%clk 0:03:00.8]}
2... Nc6 {[%clk 0:02:58.8]} 3. Bb5 {[%clk 0:03:01.1]} 3... a6 {[%clk 0:02:58.6]}
4. Ba4 {[%clk 0:03:01]} 4... Nf6 {[%clk 0:02:58.2]} 5. O-O {[%clk 0:02:59.5]}
5... Be7 {[%clk 0:02:58.2]} 6. Re1 {[%clk 0:02:59.1]} 6... b5 {[%clk 0:02:57.7]}
7. Bb3 {[%clk 0:02:59]} 7... d6 {[%clk 0:02:58.3]} 8. c3 {[%clk 0:02:55.1]} 8...
O-O {[%clk 0:02:56.2]} 9. h3 {[%clk 0:02:55]} 9... Nb8 {[%clk 0:02:55.9]} 10. d4
{[%clk 0:02:54.3]} 10... Nbd7 {[%clk 0:02:56.4]} 11. Nbd2 {[%clk 0:02:52.9]}
11... Bb7 {[%clk 0:02:56.2]} 12. a4 {[%clk 0:02:50.8]} 12... c5 {[%clk
0:02:54.5]} 13. d5 {[%clk 0:02:48.4]} 13... c4 {[%clk 0:02:54.2]} 14. Bc2 {[%clk
0:02:48.7]} 14... Nc5 {[%clk 0:02:54.6]} 15. Qe2 {[%clk 0:02:43.2]} 15... Qc7
{[%clk 0:02:53]} 16. Nf1 {[%clk 0:02:31.1]} 16... Rfb8 {[%clk 0:02:49.8]} 17.
Ng3 {[%clk 0:02:26.6]} 17... g6 {[%clk 0:02:49.4]} 18. Nd2 {[%clk 0:02:20.2]}
18... Bc8 {[%clk 0:02:42.2]} 19. Kh2 {[%clk 0:02:15.5]} 19... Nfd7 {[%clk
0:02:37.9]} 20. Ndf1 {[%clk 0:01:56.5]} 20... Nb6 {[%clk 0:02:36.2]} 21. a5
{[%clk 0:01:49.9]} 21... Nbd7 {[%clk 0:02:35.7]} 22. f4 {[%clk 0:01:45.5]} 22...
exf4 {[%clk 0:02:33.7]} 23. Bxf4 {[%clk 0:01:46.4]} 23... Bf6 {[%clk 0:02:32.6]}
24. Ne3 {[%clk 0:01:44.9]} 24... Ne5 {[%clk 0:02:30.9]} 25. Rf1 {[%clk 0:01:43]}
25... Bg7 {[%clk 0:02:29.4]} 26. Bg5 {[%clk 0:01:38.7]} 26... Ra7 {[%clk
0:02:24.9]} 27. Bf6 {[%clk 0:01:15.1]} 27... Rab7 {[%clk 0:01:57.9]} 28. Bxg7
{[%clk 0:00:49.6]} 28... Kxg7 {[%clk 0:01:57.5]} 29. Qf2 {[%clk 0:00:50.2]}
29... Qe7 {[%clk 0:01:50.9]} 30. Ne2 {[%clk 0:00:43.6]} 30... b4 {[%clk
0:01:40]} 31. Qg3 {[%clk 0:00:42.3]} 31... bxc3 {[%clk 0:01:38.6]} 32. bxc3
{[%clk 0:00:43.2]} 32... Ned3 {[%clk 0:01:26.9]} 33. Nd4 {[%clk 0:00:19.1]}
33... Nxe4 {[%clk 0:01:05.1]} 34. Qf3 {[%clk 0:00:02.6]} 34... Qe5+ {[%clk
0:00:55.6]} 35. Kg1 {[%clk 0:00:02.1]} 35... Nd2 {[%clk 0:00:55.2]} 36. Qe2
{[%clk 0:00:01.5]} 36... Nxf1 {[%clk 0:00:54.6]} 37. Rxf1 {[%clk 0:00:02.4]}
37... Re7 {[%clk 0:00:51.7]} 38. Nc6 {[%clk 0:00:02.4]} 38... Qxe3+ {[%clk
0:00:48.6]} 39. Qxe3 {[%clk 0:00:03.3]} 39... Rxe3 {[%clk 0:00:48.8]} 40. Nxb8
{[%clk 0:00:04.2]} 40... Ne5 {[%clk 0:00:46.1]} 41. Nc6 {[%clk 0:00:02.1]} 41...
Rxc3 {[%clk 0:00:45.8]} 42. Ba4 {[%clk 0:00:02.4]} 42... Ra3 {[%clk 0:00:42.6]}
43. Nxe5 {[%clk 0:00:02.5]} 43... dxe5 {[%clk 0:00:39.2]} 44. Be8 {[%clk
0:00:03.1]} 44... Kf8 {[%clk 0:00:34.4]} 45. Bxf7 {[%clk 0:00:03.1]} 45... Ke7
{[%clk 0:00:34.5]} 46. Bg8 {[%clk 0:00:03.5]} 46... h5 {[%clk 0:00:30.2]} 47.
Bf7 {[%clk 0:00:03.3]} 47... Bf5 {[%clk 0:00:29.2]} 48. Bg8 {[%clk 0:00:03.9]}
48... Rxa5 {[%clk 0:00:27.5]} 49. Rc1 {[%clk 0:00:04]} 49... Rc5 {[%clk
0:00:27.1]} 50. Kf2 {[%clk 0:00:04.3]} 50... c3 {[%clk 0:00:27]} 51. Ke3 {[%clk
0:00:05.2]} 51... c2 {[%clk 0:00:26.2]} 52. g4 {[%clk 0:00:04.6]} 52... hxg4
{[%clk 0:00:25.7]} 53. hxg4 {[%clk 0:00:05.5]} 53... Bxg4 {[%clk 0:00:26]} 54.
Ke4 {[%clk 0:00:06.4]} 54... Kd6 {[%clk 0:00:25.7]} 55. Bf7 {[%clk 0:00:05.7]}
55... Bf5+ {[%clk 0:00:25.8]} 56. Ke3 {[%clk 0:00:06.3]} 56... a5 {[%clk
0:00:25.2]} 57. Kd2 {[%clk 0:00:06.8]} 57... a4 {[%clk 0:00:23.9]} 58. Ra1
{[%clk 0:00:07.4]} 58... c1=Q+ {[%clk 0:00:24]} 59. Rxc1 {[%clk 0:00:07.5]}
59... Rxc1 {[%clk 0:00:24.5]} 60. Kxc1 {[%clk 0:00:08.4]} 60... a3 {[%clk
0:00:24.9]} 61. Bg8 {[%clk 0:00:07.1]} 61... g5 {[%clk 0:00:24.9]} 62. Bf7
{[%clk 0:00:06.9]} 62... g4 {[%clk 0:00:25.2]} 63. Bh5 {[%clk 0:00:07.5]} 63...
e4 {[%clk 0:00:24.9]} 64. Kc2 {[%clk 0:00:06.5]} 64... g3 {[%clk 0:00:24.7]} 65.
Kb3 {[%clk 0:00:06.9]} 65... g2 {[%clk 0:00:24.7]} 0-1

[Event "*** SCC Grand Prix: Titled Tuesday Blitz"]
[Site "Chess.com"]
[Date "2020.08.11"]
[Round "6"]
[White "amatatanav"]
[Black "Meri-Arabidze"]
[Result "1-0"]
[WhiteElo "2468"]
[BlackElo "2593"]
[TimeControl "180+1"]
[EndTime "11:08:31 PDT"]
[Termination "amatatanav won on time"]

1. e4 {[%clk 0:03:00.9]} 1... c5 {[%clk 0:02:59.5]} 2. Ne2 {[%clk 0:03:00.8]}
2... e6 {[%clk 0:03:00.4]} 3. d4 {[%clk 0:03:00.6]} 3... cxd4 {[%clk 0:03:01.3]}
4. Nxd4 {[%clk 0:03:01.5]} 4... Nc6 {[%clk 0:03:01.8]} 5. Nc3 {[%clk 0:03:01.3]}
5... a6 {[%clk 0:03:02.3]} 6. Be3 {[%clk 0:02:59.9]} 6... Qc7 {[%clk 0:03:02]}
7. Qf3 {[%clk 0:02:59.7]} 7... Nf6 {[%clk 0:03:02]} 8. O-O-O {[%clk 0:02:59.6]}
8... Ne5 {[%clk 0:03:01.2]} 9. Qg3 {[%clk 0:02:59]} 9... h5 {[%clk 0:03:01.3]}
10. f4 {[%clk 0:02:50.3]} 10... Neg4 {[%clk 0:03:01.3]} 11. e5 {[%clk 0:02:43]}
11... Nxe3 {[%clk 0:02:56]} 12. Qxe3 {[%clk 0:02:43.9]} 12... Ng4 {[%clk
0:02:55.5]} 13. Qf3 {[%clk 0:02:30.2]} 13... d5 {[%clk 0:02:53.8]} 14. h3 {[%clk
0:01:28]} 14... g6 {[%clk 0:02:50.8]} 15. Bd3 {[%clk 0:00:44.9]} 15... Nh6
{[%clk 0:02:49.7]} 16. g4 {[%clk 0:00:45.2]} 16... h4 {[%clk 0:02:36.1]} 17. f5
{[%clk 0:00:41.1]} 17... gxf5 {[%clk 0:02:32.2]} 18. gxf5 {[%clk 0:00:41.2]}
18... Qxe5 {[%clk 0:02:15.1]} 19. Rhe1 {[%clk 0:00:38.4]} 19... Qg3 {[%clk
0:02:05.3]} 20. Nxd5 {[%clk 0:00:26.3]} 20... Qxf3 {[%clk 0:01:49.8]} 21. Nxf3
{[%clk 0:00:26.1]} 21... Bd6 {[%clk 0:01:49.2]} 22. Nb6 {[%clk 0:00:23.9]} 22...
Rb8 {[%clk 0:01:48.1]} 23. Nxc8 {[%clk 0:00:22.5]} 23... Rxc8 {[%clk 0:01:47.4]}
24. fxe6 {[%clk 0:00:23.1]} 24... Bg3 {[%clk 0:01:27.1]} 25. exf7+ {[%clk
0:00:23.2]} 25... Kxf7 {[%clk 0:01:27.1]} 26. Re4 {[%clk 0:00:23.8]} 26... Rhf8
{[%clk 0:01:02.9]} 27. Nxh4 {[%clk 0:00:21.5]} 27... Bxh4 {[%clk 0:00:21.4]} 28.
Rxh4 {[%clk 0:00:21]} 28... Rh8 {[%clk 0:00:19]} 29. Rf1+ {[%clk 0:00:19.9]}
29... Ke7 {[%clk 0:00:19.3]} 30. Re4+ {[%clk 0:00:18.9]} 30... Kd6 {[%clk
0:00:19.5]} 31. Rf6+ {[%clk 0:00:18.9]} 31... Kd5 {[%clk 0:00:19.9]} 32. c4+
{[%clk 0:00:14.9]} 32... Kc5 {[%clk 0:00:20.2]} 33. Rh4 {[%clk 0:00:13.5]} 33...
Rc6 {[%clk 0:00:17]} 34. Rxc6+ {[%clk 0:00:07.2]} 34... bxc6 {[%clk 0:00:17.9]}
35. Kc2 {[%clk 0:00:06.6]} 35... a5 {[%clk 0:00:18.3]} 36. b3 {[%clk 0:00:06.6]}
36... Kb6 {[%clk 0:00:18]} 37. Kc3 {[%clk 0:00:07]} 37... Kc5 {[%clk 0:00:17.6]}
38. a3 {[%clk 0:00:07.4]} 38... Kd6 {[%clk 0:00:17.2]} 39. b4 {[%clk 0:00:07.9]}
39... axb4+ {[%clk 0:00:17.2]} 40. axb4 {[%clk 0:00:08.8]} 40... c5 {[%clk
0:00:17.5]} 41. bxc5+ {[%clk 0:00:08.3]} 41... Kxc5 {[%clk 0:00:17.7]} 42. Rh5+
{[%clk 0:00:09.1]} 42... Kc6 {[%clk 0:00:17.3]} 43. h4 {[%clk 0:00:09.7]} 43...
Kd6 {[%clk 0:00:15.5]} 44. c5+ {[%clk 0:00:10.1]} 44... Kc7 {[%clk 0:00:15.7]}
45. Kc4 {[%clk 0:00:09.9]} 45... Kc6 {[%clk 0:00:11.2]} 46. Be4+ {[%clk
0:00:10.1]} 46... Kc7 {[%clk 0:00:11.9]} 47. Bd3 {[%clk 0:00:10.5]} 47... Kc6
{[%clk 0:00:12.1]} 48. Bc2 {[%clk 0:00:11]} 48... Kc7 {[%clk 0:00:12.5]} 49. Bb3
{[%clk 0:00:10.2]} 49... Kc6 {[%clk 0:00:12.5]} 50. Ba4+ {[%clk 0:00:10.4]}
50... Kc7 {[%clk 0:00:12.8]} 51. Bb5 {[%clk 0:00:11]} 51... Rh7 {[%clk
0:00:10.7]} 52. Kb4 {[%clk 0:00:10.2]} 52... Rh8 {[%clk 0:00:10.8]} 53. Bd3
{[%clk 0:00:10]} 53... Rb8+ {[%clk 0:00:10.1]} 54. Kc4 {[%clk 0:00:09.4]} 54...
Ng8 {[%clk 0:00:10.8]} 55. Rh7+ {[%clk 0:00:09.4]} 55... Kd8 {[%clk 0:00:09.9]}
56. Rh8 {[%clk 0:00:08.8]} 56... Ke7 {[%clk 0:00:09.8]} 57. Bh7 {[%clk
0:00:08.6]} 57... Rb2 {[%clk 0:00:02.3]} 58. Rxg8 {[%clk 0:00:08.1]} 58... Rh2
{[%clk 0:00:02.1]} 59. Rg4 {[%clk 0:00:08.1]} 59... Kf6 {[%clk 0:00:02.5]} 60.
Bd3 {[%clk 0:00:08.1]} 60... Rh3 {[%clk 0:00:02.6]} 61. Rd4 {[%clk 0:00:07.9]}
61... Rh1 {[%clk 0:00:02.7]} 62. Kd5 {[%clk 0:00:08.2]} 62... Rc1 {[%clk
0:00:02]} 63. Kd6 {[%clk 0:00:07.9]} 63... Rd1 {[%clk 0:00:01.2]} 64. c6 {[%clk
0:00:08]} 64... Rc1 {[%clk 0:00:01.2]} 65. c7 {[%clk 0:00:08.1]} 1-0

[Event "*** SCC Grand Prix: Titled Tuesday Blitz"]
[Site "Chess.com"]
[Date "2020.08.11"]
[Round "6"]
[White "Nikolaj_6"]
[Black "Artur0208"]
[Result "1/2-1/2"]
[WhiteElo "2619"]
[BlackElo "2753"]
[TimeControl "180+1"]
[EndTime "11:08:33 PDT"]
[Termination "Game drawn by repetition"]

1. e4 {[%clk 0:03:00.9]} 1... e5 {[%clk 0:02:59.9]} 2. Nf3 {[%clk 0:03:00.7]}
2... Nc6 {[%clk 0:03:00.4]} 3. Bb5 {[%clk 0:03:01.1]} 3... a6 {[%clk 0:02:59.5]}
4. Ba4 {[%clk 0:03:01.2]} 4... g6 {[%clk 0:03:00]} 5. c3 {[%clk 0:02:58.4]} 5...
Bg7 {[%clk 0:02:58.8]} 6. d4 {[%clk 0:02:58.2]} 6... b5 {[%clk 0:02:59.3]} 7.
Bc2 {[%clk 0:02:55]} 7... exd4 {[%clk 0:02:59.2]} 8. cxd4 {[%clk 0:02:54.8]}
8... Nge7 {[%clk 0:03:00.1]} 9. O-O {[%clk 0:02:48.9]} 9... O-O {[%clk
0:02:59.2]} 10. h3 {[%clk 0:02:46.9]} 10... d6 {[%clk 0:02:58.8]} 11. Nc3 {[%clk
0:02:44.4]} 11... Na5 {[%clk 0:02:57.7]} 12. Bg5 {[%clk 0:02:38.1]} 12... h6
{[%clk 0:02:57.3]} 13. Bf4 {[%clk 0:02:37.3]} 13... Bb7 {[%clk 0:02:50.7]} 14.
Re1 {[%clk 0:02:36.8]} 14... Rc8 {[%clk 0:02:38.4]} 15. Rc1 {[%clk 0:02:29.5]}
15... c5 {[%clk 0:02:36.7]} 16. dxc5 {[%clk 0:02:26.2]} 16... dxc5 {[%clk
0:02:37.6]} 17. Qe2 {[%clk 0:02:18.5]} 17... Qb6 {[%clk 0:02:32.3]} 18. Bb1
{[%clk 0:02:11.3]} 18... Rfe8 {[%clk 0:01:53]} 19. b3 {[%clk 0:01:57.4]} 19...
c4 {[%clk 0:01:22.8]} 20. b4 {[%clk 0:01:50.3]} 20... Nac6 {[%clk 0:01:23.3]}
21. Be3 {[%clk 0:01:40.9]} 21... Qc7 {[%clk 0:01:22.3]} 22. Bc5 {[%clk
0:01:37.7]} 22... Rcd8 {[%clk 0:00:56.3]} 23. a4 {[%clk 0:01:36.4]} 23... Bxc3
{[%clk 0:00:42]} 24. Rxc3 {[%clk 0:01:36]} 24... Nd5 {[%clk 0:00:42]} 25. Rcc1
{[%clk 0:01:23.5]} 25... Ncxb4 {[%clk 0:00:41]} 26. Bd4 {[%clk 0:01:11.5]} 26...
Nf4 {[%clk 0:00:40.5]} 27. Qe3 {[%clk 0:01:09.8]} 27... Nbd3 {[%clk 0:00:39.4]}
28. Bxd3 {[%clk 0:01:09]} 28... Nxd3 {[%clk 0:00:38.5]} 29. Qxd3 {[%clk
0:01:09]} 29... cxd3 {[%clk 0:00:35.7]} 30. Rxc7 {[%clk 0:01:09]} 30... Rxe4
{[%clk 0:00:19.1]} 31. Rxe4 {[%clk 0:00:47.5]} 31... Bxe4 {[%clk 0:00:20]} 32.
Bf6 {[%clk 0:00:44]} 32... Bxf3 {[%clk 0:00:19.7]} 33. Bxd8 {[%clk 0:00:34.6]}
33... d2 {[%clk 0:00:20]} 34. Rd7 {[%clk 0:00:27]} 34... d1=Q+ {[%clk
0:00:20.2]} 35. Rxd1 {[%clk 0:00:27.5]} 35... Bxd1 {[%clk 0:00:20.7]} 36. axb5
{[%clk 0:00:28.1]} 36... axb5 {[%clk 0:00:21.6]} 37. Be7 {[%clk 0:00:28.3]}
37... f5 {[%clk 0:00:21.5]} 38. f4 {[%clk 0:00:27]} 38... Kf7 {[%clk 0:00:22]}
39. Bb4 {[%clk 0:00:26.4]} 39... Ke6 {[%clk 0:00:22.5]} 40. Kf2 {[%clk
0:00:26.5]} 40... Kd5 {[%clk 0:00:23.1]} 41. Ke1 {[%clk 0:00:26.7]} 41... Bc2
{[%clk 0:00:21.8]} 42. Kd2 {[%clk 0:00:26.3]} 42... Kc4 {[%clk 0:00:22.1]} 43.
Bf8 {[%clk 0:00:24.3]} 43... Be4 {[%clk 0:00:22.7]} 44. g4 {[%clk 0:00:20.2]}
44... h5 {[%clk 0:00:17]} 45. gxh5 {[%clk 0:00:19.4]} 45... gxh5 {[%clk
0:00:17.9]} 46. h4 {[%clk 0:00:19.6]} 46... b4 {[%clk 0:00:18.3]} 47. Kc1 {[%clk
0:00:19.7]} 47... Kc3 {[%clk 0:00:18.2]} 48. Bg7+ {[%clk 0:00:19.5]} 48... Kd3
{[%clk 0:00:18.5]} 49. Bf6 {[%clk 0:00:18.1]} 49... Bd5 {[%clk 0:00:17]} 50. Kb2
{[%clk 0:00:17.6]} 50... Ke4 {[%clk 0:00:16.9]} 51. Bg5 {[%clk 0:00:17.9]} 51...
Be6 {[%clk 0:00:16.5]} 52. Kb1 {[%clk 0:00:17.7]} 52... Kd4 {[%clk 0:00:13.6]}
53. Kb2 {[%clk 0:00:17.8]} 53... Ke3 {[%clk 0:00:14.2]} 54. Bh6 {[%clk
0:00:17.6]} 54... Kd3 {[%clk 0:00:13.3]} 55. Bg5 {[%clk 0:00:17.7]} 55... Ke4
{[%clk 0:00:14]} 56. Bh6 {[%clk 0:00:17.9]} 56... Kf3 {[%clk 0:00:14.9]} 57. Bg5
{[%clk 0:00:18.1]} 57... Kg4 {[%clk 0:00:15.8]} 58. Kc2 {[%clk 0:00:18.4]} 58...
Bc4 {[%clk 0:00:16.2]} 59. Kb2 {[%clk 0:00:18.6]} 59... Kf3 {[%clk 0:00:16.7]}
60. Kc2 {[%clk 0:00:18.8]} 60... Ke2 {[%clk 0:00:16]} 61. Kb2 {[%clk 0:00:19.2]}
61... Kd3 {[%clk 0:00:15.7]} 62. Bf6 {[%clk 0:00:19.3]} 62... Be6 {[%clk
0:00:15.8]} 63. Bg5 {[%clk 0:00:19.3]} 63... Kc4 {[%clk 0:00:14.9]} 64. Be7
{[%clk 0:00:19.3]} 64... Bd5 {[%clk 0:00:14.9]} 65. Bg5 {[%clk 0:00:18.9]} 65...
Kd3 {[%clk 0:00:14.7]} 66. Be7 {[%clk 0:00:18.6]} 66... Ke4 {[%clk 0:00:15.6]}
67. Bg5 {[%clk 0:00:18]} 67... Bc4 {[%clk 0:00:14.9]} 68. Kc2 {[%clk 0:00:17.9]}
68... Kd5 {[%clk 0:00:15.2]} 69. Kb2 {[%clk 0:00:18]} 69... Kc5 {[%clk
0:00:12.4]} 70. Be7+ {[%clk 0:00:17.8]} 70... Kb5 {[%clk 0:00:12.9]} 71. Bg5
{[%clk 0:00:18.3]} 71... Bd5 {[%clk 0:00:13.5]} 72. Be7 {[%clk 0:00:17.9]} 72...
Be4 {[%clk 0:00:14.4]} 73. Bg5 {[%clk 0:00:18.2]} 73... Kc4 {[%clk 0:00:15.1]}
74. Bf6 {[%clk 0:00:18.3]} 74... Bd5 {[%clk 0:00:14.9]} 75. Bg5 {[%clk
0:00:18.3]} 75... Kd3 {[%clk 0:00:15.3]} 76. Be7 {[%clk 0:00:18.1]} 76... Ke4
{[%clk 0:00:13.5]} 77. Bg5 {[%clk 0:00:17.6]} 1/2-1/2

[Event "*** SCC Grand Prix: Titled Tuesday Blitz"]
[Site "Chess.com"]
[Date "2020.08.11"]
[Round "6"]
[White "Fighterman91"]
[Black "chegueps"]
[Result "0-1"]
[WhiteElo "2610"]
[BlackElo "2476"]
[TimeControl "180+1"]
[EndTime "11:08:35 PDT"]
[Termination "chegueps won by resignation"]

1. e4 {[%clk 0:03:00.9]} 1... c5 {[%clk 0:02:41.5]} 2. Nf3 {[%clk 0:03:00.4]}
2... e6 {[%clk 0:02:33.3]} 3. d4 {[%clk 0:02:58.7]} 3... cxd4 {[%clk 0:02:32]}
4. Nxd4 {[%clk 0:02:59.6]} 4... Nf6 {[%clk 0:02:32.8]} 5. Nc3 {[%clk 0:03:00]}
5... Nc6 {[%clk 0:02:33.3]} 6. a3 {[%clk 0:02:52.4]} 6... d5 {[%clk 0:02:32]} 7.
Bb5 {[%clk 0:02:50.3]} 7... Bd7 {[%clk 0:02:07.1]} 8. exd5 {[%clk 0:02:50.7]}
8... exd5 {[%clk 0:02:06]} 9. O-O {[%clk 0:02:51.3]} 9... Be7 {[%clk 0:02:05.9]}
10. Re1 {[%clk 0:02:51.6]} 10... O-O {[%clk 0:02:06]} 11. Nb3 {[%clk 0:02:50.8]}
11... Be6 {[%clk 0:02:02.9]} 12. Be3 {[%clk 0:02:43]} 12... Bf5 {[%clk
0:01:58.1]} 13. Nd4 {[%clk 0:02:35.3]} 13... Nxd4 {[%clk 0:01:53.4]} 14. Bxd4
{[%clk 0:02:36.2]} 14... Ne4 {[%clk 0:01:53.8]} 15. Bd3 {[%clk 0:02:27.4]} 15...
Nxc3 {[%clk 0:01:28]} 16. Bxc3 {[%clk 0:02:27.9]} 16... Bxd3 {[%clk 0:01:28.9]}
17. Qxd3 {[%clk 0:02:28.5]} 17... Bf6 {[%clk 0:01:29.8]} 18. Rad1 {[%clk
0:02:13]} 18... Bxc3 {[%clk 0:01:23.3]} 19. Qxc3 {[%clk 0:02:13.9]} 19... Rc8
{[%clk 0:01:24]} 20. Qd3 {[%clk 0:02:14.4]} 20... Qb6 {[%clk 0:01:22.8]} 21. b4
{[%clk 0:02:09.4]} 21... d4 {[%clk 0:01:15.5]} 22. Re2 {[%clk 0:01:54.1]} 22...
Rc3 {[%clk 0:01:10.5]} 23. Qxd4 {[%clk 0:01:54.4]} 23... Qxd4 {[%clk 0:01:11.4]}
24. Rxd4 {[%clk 0:01:55.3]} 24... Rxa3 {[%clk 0:01:12.3]} 25. h4 {[%clk
0:01:55.6]} 25... Ra2 {[%clk 0:01:06.2]} 26. Rd7 {[%clk 0:01:49.9]} 26... b6
{[%clk 0:01:04.1]} 27. h5 {[%clk 0:01:45.2]} 27... Rb2 {[%clk 0:00:43.9]} 28.
Rd4 {[%clk 0:01:37.9]} 28... Rc8 {[%clk 0:00:29.1]} 29. Rc4 {[%clk 0:01:35.7]}
29... Rd8 {[%clk 0:00:27.1]} 30. Rd2 {[%clk 0:01:32.4]} 30... Re8 {[%clk
0:00:23.3]} 31. Rc7 {[%clk 0:01:31.4]} 31... Rxb4 {[%clk 0:00:20.2]} 32. Rdd7
{[%clk 0:01:32.1]} 32... Rf8 {[%clk 0:00:17.6]} 33. Rxa7 {[%clk 0:01:30.8]}
33... Rb5 {[%clk 0:00:12.4]} 34. h6 {[%clk 0:01:29]} 34... gxh6 {[%clk
0:00:11.7]} 35. Rd6 {[%clk 0:01:29.6]} 35... Rc5 {[%clk 0:00:09]} 36. Rxh6
{[%clk 0:01:24.7]} 36... Rxc2 {[%clk 0:00:06.8]} 37. Rxb6 {[%clk 0:01:25.3]}
37... Rc5 {[%clk 0:00:03.4]} 38. Rb3 {[%clk 0:01:25.3]} 38... Rg5 {[%clk
0:00:03.6]} 39. Rf3 {[%clk 0:01:25.5]} 39... Rg6 {[%clk 0:00:03.9]} 40. g3
{[%clk 0:01:25.9]} 40... Kg7 {[%clk 0:00:04.4]} 41. Kg2 {[%clk 0:01:26.5]} 41...
Rf6 {[%clk 0:00:05.1]} 42. Re3 {[%clk 0:01:27.2]} 42... Rg6 {[%clk 0:00:04.7]}
43. Re4 {[%clk 0:01:27.5]} 43... Rf6 {[%clk 0:00:05]} 44. Ree7 {[%clk
0:01:28.1]} 44... Rg6 {[%clk 0:00:05.9]} 45. Reb7 {[%clk 0:01:28.7]} 45... Rf6
{[%clk 0:00:05.9]} 46. Ra4 {[%clk 0:01:29.3]} 46... h6 {[%clk 0:00:06.2]} 47.
Rb5 {[%clk 0:01:29.7]} 47... Rg6 {[%clk 0:00:06.7]} 48. Rh4 {[%clk 0:01:30]}
48... Rf6 {[%clk 0:00:07]} 49. Rbb4 {[%clk 0:01:30.6]} 49... Rg6 {[%clk
0:00:07.6]} 50. Rbf4 {[%clk 0:01:31.3]} 50... Re8 {[%clk 0:00:07]} 51. Rf5
{[%clk 0:01:31.9]} 51... Ree6 {[%clk 0:00:06.9]} 52. Rfh5 {[%clk 0:01:32.3]}
52... Ref6 {[%clk 0:00:07]} 53. f4 {[%clk 0:01:32.5]} 53... Rb6 {[%clk
0:00:06.9]} 54. f5 {[%clk 0:01:32.7]} 54... Rb2+ {[%clk 0:00:06.2]} 55. Kh3
{[%clk 0:01:32.7]} 55... Rf6 {[%clk 0:00:06.3]} 56. Rg4+ {[%clk 0:01:33.3]}
56... Kh7 {[%clk 0:00:06.3]} 57. Re4 {[%clk 0:01:33.9]} 57... Rb5 {[%clk
0:00:05.2]} 58. Kg4 {[%clk 0:01:34.1]} 58... Rb8 {[%clk 0:00:05.4]} 59. Kf4
{[%clk 0:01:34.6]} 59... Rb1 {[%clk 0:00:04.9]} 60. g4 {[%clk 0:01:34.4]} 60...
Rb5 {[%clk 0:00:03.6]} 61. Rd4 {[%clk 0:01:32.9]} 61... Kg7 {[%clk 0:00:03.9]}
62. Rc4 {[%clk 0:01:32.4]} 62... Rfb6 {[%clk 0:00:03.6]} 63. Kg3 {[%clk
0:01:31.3]} 63... Rb3+ {[%clk 0:00:03.6]} 64. Kh4 {[%clk 0:01:31.8]} 64... Rb1
{[%clk 0:00:02.4]} 65. Kg3 {[%clk 0:01:31.3]} 65... Rg1+ {[%clk 0:00:02.5]} 66.
Kf4 {[%clk 0:01:31.6]} 66... Rf1+ {[%clk 0:00:02.4]} 67. Ke4 {[%clk 0:01:31.7]}
67... Re1+ {[%clk 0:00:02.9]} 68. Kd5 {[%clk 0:01:32.1]} 68... Rd1+ {[%clk
0:00:03.3]} 69. Kc5 {[%clk 0:01:32.4]} 69... Rbd6 {[%clk 0:00:03.7]} 70. Rh3
{[%clk 0:01:27.1]} 70... R1d5+ {[%clk 0:00:03.4]} 71. Kb4 {[%clk 0:01:27.3]}
71... Rd4 {[%clk 0:00:04.1]} 72. Rc3 {[%clk 0:01:27.9]} 72... Rxc4+ {[%clk
0:00:03.7]} 73. Rxc4 {[%clk 0:01:28.5]} 73... Kf6 {[%clk 0:00:04.4]} 74. Kc5
{[%clk 0:01:29.1]} 74... Rd3 {[%clk 0:00:04.2]} 75. Re4 {[%clk 0:01:28.2]} 75...
Kg5 {[%clk 0:00:04.3]} 76. Re7 {[%clk 0:01:25.2]} 76... Kf6 {[%clk 0:00:04.5]}
77. Re4 {[%clk 0:01:24.3]} 77... Rd7 {[%clk 0:00:04.3]} 78. Kc4 {[%clk
0:01:24.3]} 78... Kg5 {[%clk 0:00:03.8]} 79. Kc3 {[%clk 0:01:19.8]} 79... Ra7
{[%clk 0:00:03.7]} 80. Kd3 {[%clk 0:01:15.4]} 80... Ra3+ {[%clk 0:00:03.6]} 81.
Ke2 {[%clk 0:01:16]} 81... Rg3 {[%clk 0:00:02.9]} 82. Re7 {[%clk 0:01:16.6]}
82... f6 {[%clk 0:00:03.1]} 83. Rg7+ {[%clk 0:01:16.2]} 83... Kf4 {[%clk
0:00:03.6]} 84. Rg6 {[%clk 0:01:16.5]} 84... Rg2+ {[%clk 0:00:02.4]} 85. Kf1
{[%clk 0:01:16.4]} 85... Rxg4 {[%clk 0:00:02.6]} 86. Rxf6 {[%clk 0:01:17.1]}
86... Kg5 {[%clk 0:00:02.6]} 87. Rf8 {[%clk 0:01:17.5]} 87... Rf4+ {[%clk
0:00:02.7]} 88. Kg2 {[%clk 0:01:18.3]} 88... Rxf5 {[%clk 0:00:03.2]} 89. Rg8+
{[%clk 0:01:19.2]} 89... Kh5 {[%clk 0:00:03.3]} 90. Rc8 {[%clk 0:01:20.1]} 90...
Rg5+ {[%clk 0:00:04.2]} 91. Kh3 {[%clk 0:01:20.6]} 91... Rd5 {[%clk 0:00:04.6]}
92. Rf8 {[%clk 0:01:20.9]} 92... Rd3+ {[%clk 0:00:04.9]} 93. Kg2 {[%clk
0:01:21.5]} 93... Kg4 {[%clk 0:00:05.3]} 94. Rf2 {[%clk 0:01:22]} 94... h5
{[%clk 0:00:05.4]} 95. Rc2 {[%clk 0:01:22.6]} 95... Rd4 {[%clk 0:00:05.6]} 96.
Rc3 {[%clk 0:01:22.7]} 96... h4 {[%clk 0:00:06.1]} 97. Rc2 {[%clk 0:01:22.5]}
97... Rb4 {[%clk 0:00:06.4]} 98. Rb2 {[%clk 0:01:23]} 98... Rxb2+ {[%clk
0:00:06.5]} 0-1